[Event "Titled Tuesday Blitz July 11 Early 2023"]
[White "Perez Candelario, Manuel"]
[Black "Molina, Roberto Junio Brito"]
[WhiteFideId "2210622"]
[BlackFideId "2109450"]
[WhiteElo "2664"]
[BlackElo "2841"]
[Result "0-1"]
[Round "9"]
[TimeControl "180+2"]
[Date "2023.07.11"]
[WhiteClock "0:00:11"]
[BlackClock "0:00:09"]
[Board "24"]

1. e4 {[%clk 0:02:58]}  c6 {[%clk 0:03:00]} 2. d4 {[%clk 0:02:57]}  d5 {[%clk 0:03:01]} 3. exd5 {[%clk 0:02:57]}  cxd5 {[%clk 0:03:01]} 4. Bd3 {[%clk 0:02:58]}  Nc6 {[%clk 0:03:01]} 5. c3 {[%clk 0:02:58]}  g6 {[%clk 0:03:00]} 6. Bf4 {[%clk 0:02:58]}  Bf5 {[%clk 0:02:58]} 7. Bxf5 {[%clk 0:02:55]}  gxf5 {[%clk 0:02:59]} 8. Nf3 {[%clk 0:02:49]}  e6 {[%clk 0:02:58]} 9. Qb3 {[%clk 0:02:39]}  Qd7 {[%clk 0:02:51]} 10. Ne5 {[%clk 0:02:38]}  Nxe5 {[%clk 0:02:50]} 11. Bxe5 {[%clk 0:02:39]}  f6 {[%clk 0:02:50]} 12. Bf4 {[%clk 0:02:30]}  Bh6 {[%clk 0:02:48]} 13. Bxh6 {[%clk 0:02:23]}  Nxh6 {[%clk 0:02:48]} 14. O-O {[%clk 0:02:09]}  O-O-O {[%clk 0:02:48]} 15. Nd2 {[%clk 0:01:49]}  Kb8 {[%clk 0:02:44]} 16. Rfe1 {[%clk 0:01:41]}  Rhe8 {[%clk 0:02:39]} 17. Rad1 {[%clk 0:01:40]}  Nf7 {[%clk 0:02:35]} 18. Qb4 {[%clk 0:01:23]}  Nd6 {[%clk 0:02:21]} 19. Nb3 {[%clk 0:01:23]}  Qc6 {[%clk 0:01:17]} 20. Re2 {[%clk 0:01:18]}  e5 {[%clk 0:00:54]} 21. dxe5 {[%clk 0:01:03]}  fxe5 {[%clk 0:00:55]} 22. Qh4 {[%clk 0:01:03]}  Rd7 {[%clk 0:00:50]} 23. Rde1 {[%clk 0:00:59]}  Rde7 {[%clk 0:00:47]} 24. f3 {[%clk 0:00:59]}  a6 {[%clk 0:00:42]} 25. Kh1 {[%clk 0:00:57]}  Ka8 {[%clk 0:00:32]} 26. h3 {[%clk 0:00:56]}  Qd7 {[%clk 0:00:29]} 27. Nc5 {[%clk 0:00:51]}  Qc6 {[%clk 0:00:27]} 28. Nd3 {[%clk 0:00:51]}  e4 {[%clk 0:00:27]} 29. Nb4 {[%clk 0:00:51]}  Qc5 {[%clk 0:00:26]} 30. Qf6 {[%clk 0:00:49]}  a5 {[%clk 0:00:26]} 31. Nc2 {[%clk 0:00:49]}  Re6 {[%clk 0:00:23]} 32. Qd4 {[%clk 0:00:48]}  Qxd4 {[%clk 0:00:22]} 33. Nxd4 {[%clk 0:00:49]}  R6e7 {[%clk 0:00:23]} 34. Kh2 {[%clk 0:00:49]}  Kb8 {[%clk 0:00:23]} 35. Kg3 {[%clk 0:00:49]}  Kc7 {[%clk 0:00:21]} 36. Kf4 {[%clk 0:00:47]}  b5 {[%clk 0:00:21]} 37. a3 {[%clk 0:00:45]}  Kb6 {[%clk 0:00:22]} 38. Nc2 {[%clk 0:00:36]}  Kc5 {[%clk 0:00:21]} 39. fxe4 {[%clk 0:00:31]}  fxe4 {[%clk 0:00:21]} 40. Ne3 {[%clk 0:00:29]}  Rg8 {[%clk 0:00:20]} 41. g4 {[%clk 0:00:28]}  Rf7+ {[%clk 0:00:20]} 42. Kg3 {[%clk 0:00:28]}  Rf3+ {[%clk 0:00:20]} 43. Kg2 {[%clk 0:00:29]}  Nc4 {[%clk 0:00:17]} 44. Nf5 {[%clk 0:00:27]}  Rxf5 {[%clk 0:00:17]} 45. b4+ {[%clk 0:00:20]}  axb4 {[%clk 0:00:15]} 46. axb4+ {[%clk 0:00:21]}  Kd6 {[%clk 0:00:15]} 47. Ra1 {[%clk 0:00:22]}  Rf3 {[%clk 0:00:14]} 48. Ra6+ {[%clk 0:00:21]}  Ke5 {[%clk 0:00:14]} 49. Rh6 {[%clk 0:00:21]}  Rxc3 {[%clk 0:00:13]} 50. Rxh7 {[%clk 0:00:20]}  e3 {[%clk 0:00:09]} 51. Rb7 {[%clk 0:00:19]}  Ke4 {[%clk 0:00:08]} 52. Rxb5 {[%clk 0:00:19]}  d4 {[%clk 0:00:08]} 53. Rb7 {[%clk 0:00:15]}  d3 {[%clk 0:00:08]} 54. Re7+ {[%clk 0:00:15]}  Ne5 {[%clk 0:00:08]} 55. Rxe5+ {[%clk 0:00:12]}  Kxe5 {[%clk 0:00:09]} 56. Rxe3+ {[%clk 0:00:12]}  Kd4 {[%clk 0:00:09]} 57. Re7 {[%clk 0:00:12]}  d2 {[%clk 0:00:08]} 58. Rd7+ {[%clk 0:00:12]}  Ke3 {[%clk 0:00:09]} 59. Re7+ {[%clk 0:00:11]}  Kd3 {[%clk 0:00:09]} 0-1


[Site "https://www.chess.com"]

[Event "Titled Tuesday Blitz July 11 Early 2023"]
[White "Prestia, Paris"]
[Black "Svane, Frederik"]
[WhiteFideId "30925959"]
[BlackFideId "12923044"]
[WhiteElo "2596"]
[BlackElo "2790"]
[Result "0-1"]
[Round "9"]
[TimeControl "180+2"]
[Date "2023.07.11"]
[WhiteClock "0:00:13"]
[BlackClock "0:00:14"]
[Board "25"]

1. d4 {[%clk 0:03:00]}  a6 {[%clk 0:03:00]} 2. e4 {[%clk 0:02:59]}  c6 {[%clk 0:03:01]} 3. Nc3 {[%clk 0:02:57]}  d5 {[%clk 0:03:00]} 4. Nf3 {[%clk 0:02:50]}  Bg4 {[%clk 0:03:00]} 5. exd5 {[%clk 0:02:48]}  cxd5 {[%clk 0:02:59]} 6. Bd3 {[%clk 0:02:48]}  Nc6 {[%clk 0:02:56]} 7. Ne2 {[%clk 0:02:28]}  Bxf3 {[%clk 0:02:54]} 8. gxf3 {[%clk 0:02:28]}  e6 {[%clk 0:02:54]} 9. c3 {[%clk 0:02:29]}  Bd6 {[%clk 0:02:53]} 10. Rg1 {[%clk 0:02:21]}  g6 {[%clk 0:02:52]} 11. Bg5 {[%clk 0:02:19]}  Qc7 {[%clk 0:02:50]} 12. h4 {[%clk 0:02:19]}  Nge7 {[%clk 0:02:45]} 13. Qd2 {[%clk 0:02:18]}  O-O-O {[%clk 0:02:44]} 14. O-O-O {[%clk 0:02:14]}  Kb8 {[%clk 0:02:44]} 15. Kb1 {[%clk 0:02:14]}  Rc8 {[%clk 0:02:44]} 16. Bf6 {[%clk 0:02:11]}  Rhe8 {[%clk 0:02:41]} 17. h5 {[%clk 0:02:12]}  Na5 {[%clk 0:02:27]} 18. hxg6 {[%clk 0:02:10]}  hxg6 {[%clk 0:02:28]} 19. b3 {[%clk 0:02:06]}  Nac6 {[%clk 0:02:23]} 20. Rh1 {[%clk 0:02:06]}  Ng8 {[%clk 0:02:23]} 21. Bh4 {[%clk 0:02:04]}  Nge7 {[%clk 0:02:20]} 22. Bg3 {[%clk 0:02:04]}  Rh8 {[%clk 0:02:20]} 23. Qg5 {[%clk 0:02:01]}  Nf5 {[%clk 0:02:10]} 24. Qf6 {[%clk 0:01:45]}  Rxh1 {[%clk 0:02:08]} 25. Rxh1 {[%clk 0:01:46]}  Bxg3 {[%clk 0:00:32]} 26. fxg3 {[%clk 0:01:33]}  Nd6 {[%clk 0:00:33]} 27. g4 {[%clk 0:01:24]}  Ka8 {[%clk 0:00:28]} 28. Kb2 {[%clk 0:01:24]}  Na7 {[%clk 0:00:26]} 29. a4 {[%clk 0:01:23]}  b5 {[%clk 0:00:23]} 30. Ra1 {[%clk 0:01:18]}  Kb7 {[%clk 0:00:22]} 31. Qf4 {[%clk 0:01:12]}  Nc6 {[%clk 0:00:20]} 32. axb5 {[%clk 0:01:12]}  axb5 {[%clk 0:00:21]} 33. b4 {[%clk 0:00:46]}  e5 {[%clk 0:00:16]} 34. Qd2 {[%clk 0:00:35]}  e4 {[%clk 0:00:13]} 35. fxe4 {[%clk 0:00:14]}  dxe4 {[%clk 0:00:14]} 36. Qe3 {[%clk 0:00:14]}  exd3 {[%clk 0:00:13]} 37. d5 {[%clk 0:00:15]}  Nc4+ {[%clk 0:00:13]} 38. Kb3 {[%clk 0:00:15]}  Nxe3 {[%clk 0:00:14]} 39. dxc6+ {[%clk 0:00:13]}  Qxc6 {[%clk 0:00:14]} 0-1


[Site "https://www.chess.com"]

[Event "Titled Tuesday Blitz July 11 Early 2023"]
[White "Siniauski, Artsiom"]
[Black "Goltsev, Dmitry"]
[WhiteFideId "13512269"]
[BlackFideId "24176710"]
[WhiteElo "2573"]
[BlackElo "2773"]
[Result "0-1"]
[Round "9"]
[TimeControl "180+2"]
[Date "2023.07.11"]
[WhiteClock "0:01:15"]
[BlackClock "0:01:18"]
[Board "26"]

1. e4 {[%clk 0:02:51]}  e6 {[%clk 0:03:00]} 2. d4 {[%clk 0:02:50]}  d5 {[%clk 0:03:00]} 3. Nc3 {[%clk 0:02:50]}  Nf6 {[%clk 0:03:00]} 4. Bg5 {[%clk 0:02:50]}  dxe4 {[%clk 0:02:59]} 5. Nxe4 {[%clk 0:02:50]}  Be7 {[%clk 0:02:59]} 6. Bxf6 {[%clk 0:02:51]}  gxf6 {[%clk 0:02:59]} 7. Nf3 {[%clk 0:02:51]}  f5 {[%clk 0:03:00]} 8. Nc3 {[%clk 0:02:52]}  a6 {[%clk 0:03:00]} 9. g3 {[%clk 0:02:52]}  b5 {[%clk 0:03:00]} 10. Bg2 {[%clk 0:02:52]}  Bb7 {[%clk 0:03:00]} 11. O-O {[%clk 0:02:53]}  c5 {[%clk 0:02:54]} 12. dxc5 {[%clk 0:02:35]}  Qxd1 {[%clk 0:02:50]} 13. Raxd1 {[%clk 0:02:30]}  Bxc5 {[%clk 0:02:50]} 14. Ne5 {[%clk 0:02:31]}  Bxg2 {[%clk 0:02:49]} 15. Kxg2 {[%clk 0:02:32]}  Ke7 {[%clk 0:02:45]} 16. a4 {[%clk 0:02:24]}  b4 {[%clk 0:02:36]} 17. Ne2 {[%clk 0:02:23]}  a5 {[%clk 0:02:30]} 18. Rd3 {[%clk 0:02:18]}  f6 {[%clk 0:02:28]} 19. Nc4 {[%clk 0:02:17]}  Nc6 {[%clk 0:02:28]} 20. Rfd1 {[%clk 0:02:16]}  Rhd8 {[%clk 0:02:28]} 21. Nf4 {[%clk 0:02:04]}  Rxd3 {[%clk 0:02:18]} 22. Rxd3 {[%clk 0:02:05]}  Ne5 {[%clk 0:02:15]} 23. Nxe5 {[%clk 0:02:03]}  fxe5 {[%clk 0:02:16]} 24. Ne2 {[%clk 0:01:58]}  e4 {[%clk 0:01:55]} 25. Rd2 {[%clk 0:01:39]}  Rc8 {[%clk 0:01:53]} 26. f3 {[%clk 0:01:35]}  Be3 {[%clk 0:01:49]} 27. Rd1 {[%clk 0:01:24]}  Rxc2 {[%clk 0:01:48]} 28. fxe4 {[%clk 0:01:25]}  Rxe2+ {[%clk 0:01:34]} 29. Kf3 {[%clk 0:01:26]}  Rd2 {[%clk 0:01:35]} 30. Re1 {[%clk 0:01:26]}  Bd4 {[%clk 0:01:28]} 31. exf5 {[%clk 0:01:26]}  e5 {[%clk 0:01:27]} 32. b3 {[%clk 0:01:25]}  Rxh2 {[%clk 0:01:20]} 33. Rc1 {[%clk 0:01:20]}  Rb2 {[%clk 0:01:19]} 34. g4 {[%clk 0:01:17]}  Rxb3+ {[%clk 0:01:18]} 35. Ke4 {[%clk 0:01:18]}  Kd6 {[%clk 0:01:18]} 36. Rh1 {[%clk 0:01:15]}  Re3# {[%clk 0:01:18]} 0-1


[Site "https://www.chess.com"]

[Event "Titled Tuesday Blitz July 11 Early 2023"]
[White "Suleymanli, Suleyman"]
[Black "Keleberda, Tymur"]
[WhiteFideId "13416375"]
[BlackFideId "14174294"]
[WhiteElo "2725"]
[BlackElo "2527"]
[Result "1-0"]
[Round "9"]
[TimeControl "180+2"]
[Date "2023.07.11"]
[WhiteClock "0:00:59"]
[BlackClock "0:00:04"]
[Board "29"]

1. Nf3 {[%clk 0:03:00]}  Nf6 {[%clk 0:02:59]} 2. g3 {[%clk 0:03:00]}  e6 {[%clk 0:02:59]} 3. Bg2 {[%clk 0:03:01]}  d5 {[%clk 0:03:00]} 4. O-O {[%clk 0:03:01]}  Be7 {[%clk 0:03:00]} 5. d4 {[%clk 0:03:02]}  c5 {[%clk 0:02:59]} 6. c4 {[%clk 0:03:01]}  b6 {[%clk 0:02:46]} 7. cxd5 {[%clk 0:03:01]}  Nxd5 {[%clk 0:02:45]} 8. e4 {[%clk 0:03:01]}  Nf6 {[%clk 0:02:46]} 9. Nc3 {[%clk 0:02:54]}  Bb7 {[%clk 0:02:39]} 10. d5 {[%clk 0:02:47]}  exd5 {[%clk 0:02:31]} 11. exd5 {[%clk 0:02:48]}  Nxd5 {[%clk 0:02:30]} 12. Nxd5 {[%clk 0:02:47]}  Qxd5 {[%clk 0:02:26]} 13. Qxd5 {[%clk 0:02:39]}  Bxd5 {[%clk 0:02:25]} 14. Re1 {[%clk 0:02:39]}  Nc6 {[%clk 0:02:20]} 15. Bf4 {[%clk 0:02:28]}  O-O-O {[%clk 0:02:17]} 16. Rad1 {[%clk 0:02:21]}  Bf6 {[%clk 0:02:12]} 17. Rxd5 {[%clk 0:02:01]}  Rxd5 {[%clk 0:02:09]} 18. Nd2 {[%clk 0:01:41]}  Rhd8 {[%clk 0:01:57]} 19. Bxd5 {[%clk 0:01:35]}  Rxd5 {[%clk 0:01:58]} 20. Re8+ {[%clk 0:01:34]}  Kd7 {[%clk 0:01:54]} 21. Rf8 {[%clk 0:01:31]}  Ke7 {[%clk 0:01:51]} 22. Rc8 {[%clk 0:01:30]}  Kd7 {[%clk 0:01:50]} 23. Rc7+ {[%clk 0:01:31]}  Kd8 {[%clk 0:01:48]} 24. Rxc6 {[%clk 0:01:31]}  Bxb2 {[%clk 0:01:41]} 25. Nc4 {[%clk 0:01:31]}  Bc3 {[%clk 0:01:32]} 26. h4 {[%clk 0:01:15]}  b5 {[%clk 0:01:19]} 27. Ne3 {[%clk 0:01:15]}  Rd2 {[%clk 0:01:01]} 28. Rxc5 {[%clk 0:01:12]}  b4 {[%clk 0:01:01]} 29. Nd5 {[%clk 0:01:07]}  Rxa2 {[%clk 0:00:29]} 30. Nxc3 {[%clk 0:01:06]}  bxc3 {[%clk 0:00:30]} 31. Rxc3 {[%clk 0:01:07]}  Kd7 {[%clk 0:00:20]} 32. Rc7+ {[%clk 0:01:07]}  Ke6 {[%clk 0:00:20]} 33. Be3 {[%clk 0:01:06]}  a5 {[%clk 0:00:19]} 34. Rc6+ {[%clk 0:01:06]}  Kd7 {[%clk 0:00:17]} 35. Ra6 {[%clk 0:01:06]}  a4 {[%clk 0:00:17]} 36. Bd4 {[%clk 0:01:06]}  g6 {[%clk 0:00:16]} 37. Kg2 {[%clk 0:01:02]}  h5 {[%clk 0:00:15]} 38. Kf3 {[%clk 0:01:01]}  Ke7 {[%clk 0:00:15]} 39. Kf4 {[%clk 0:00:59]}  Kd7 {[%clk 0:00:15]} 40. Kg5 {[%clk 0:00:59]}  Ke7 {[%clk 0:00:15]} 41. Bc5+ {[%clk 0:00:58]}  Kd7 {[%clk 0:00:14]} 42. Kf6 {[%clk 0:00:58]}  Rc2 {[%clk 0:00:13]} 43. Be3 {[%clk 0:00:56]}  Rc4 {[%clk 0:00:08]} 44. Kxf7 {[%clk 0:00:55]}  Kc7 {[%clk 0:00:04]} 45. Kxg6 {[%clk 0:00:56]}  Kb7 {[%clk 0:00:04]} 46. Ra7+ {[%clk 0:00:56]}  Kc6 {[%clk 0:00:04]} 47. Kxh5 {[%clk 0:00:57]}  Kb5 {[%clk 0:00:05]} 48. Kg5 {[%clk 0:00:57]}  Kb4 {[%clk 0:00:05]} 49. h5 {[%clk 0:00:57]}  Kb3 {[%clk 0:00:05]} 50. h6 {[%clk 0:00:57]}  a3 {[%clk 0:00:05]} 51. h7 {[%clk 0:00:58]}  Rc8 {[%clk 0:00:05]} 52. Bd4 {[%clk 0:00:58]}  a2 {[%clk 0:00:04]} 53. h8=Q {[%clk 0:00:58]}  Rxh8 {[%clk 0:00:04]} 54. Bxh8 {[%clk 0:00:59]}  a1=Q {[%clk 0:00:04]} 55. Bxa1 {[%clk 0:00:59]}  Kc2 {[%clk 0:00:04]} 56. Rd7 {[%clk 0:00:59]} 1-0


[Site "https://www.chess.com"]

[Event "Titled Tuesday Blitz July 11 Early 2023"]
[White "Zavgorodniy, Sergiy"]
[Black "Llorente Zaro, Alfonso"]
[WhiteFideId "14110148"]
[BlackFideId "2254131"]
[WhiteElo "2592"]
[BlackElo "2778"]
[Result "1-0"]
[Round "9"]
[TimeControl "180+2"]
[Date "2023.07.11"]
[WhiteClock "0:02:54"]
[BlackClock "0:02:21"]
[Board "33"]

1. e4 {[%clk 0:03:00]}  Nc6 {[%clk 0:02:22]} 2. Nf3 {[%clk 0:02:59]}  d5 {[%clk 0:02:23]} 3. exd5 {[%clk 0:02:58]}  Qd6 {[%clk 0:02:24]} 4. dxc6 {[%clk 0:02:57]}  Qxc6 {[%clk 0:02:23]} 5. Be2 {[%clk 0:02:56]}  Nf6 {[%clk 0:02:22]} 6. O-O {[%clk 0:02:57]}  g6 {[%clk 0:02:22]} 7. d4 {[%clk 0:02:56]}  Bg7 {[%clk 0:02:22]} 8. c3 {[%clk 0:02:57]}  O-O {[%clk 0:02:22]} 9. Re1 {[%clk 0:02:56]}  b6 {[%clk 0:02:23]} 10. Ne5 {[%clk 0:02:54]}  Qe8 {[%clk 0:02:22]} 11. Bf3 {[%clk 0:02:54]}  Rb8 {[%clk 0:02:21]} 12. Nc6 {[%clk 0:02:54]} 1-0


[Site "https://www.chess.com"]

[Event "Titled Tuesday Blitz July 11 Early 2023"]
[White "Kozak, Antoni"]
[Black "Gontcharov, Vladislav"]
[WhiteFideId "21832030"]
[BlackFideId "4123492"]
[WhiteElo "2769"]
[BlackElo "2585"]
[Result "1-0"]
[Round "9"]
[TimeControl "180+2"]
[Date "2023.07.11"]
[WhiteClock "0:00:13"]
[BlackClock "0:00:14"]
[Board "34"]

1. Nf3 {[%clk 0:03:00]}  Nf6 {[%clk 0:02:58]} 2. g3 {[%clk 0:02:58]}  c5 {[%clk 0:02:58]} 3. Bg2 {[%clk 0:02:59]}  Nc6 {[%clk 0:02:58]} 4. O-O {[%clk 0:02:59]}  d6 {[%clk 0:02:57]} 5. d4 {[%clk 0:02:57]}  cxd4 {[%clk 0:02:56]} 6. Nxd4 {[%clk 0:02:58]}  Bd7 {[%clk 0:02:56]} 7. c4 {[%clk 0:02:57]}  g6 {[%clk 0:02:51]} 8. Nc3 {[%clk 0:02:57]}  Bg7 {[%clk 0:02:51]} 9. Nc2 {[%clk 0:02:57]}  O-O {[%clk 0:02:50]} 10. b3 {[%clk 0:02:57]}  Qa5 {[%clk 0:02:46]} 11. Bd2 {[%clk 0:02:44]}  Qh5 {[%clk 0:02:44]} 12. e3 {[%clk 0:02:37]}  Qxd1 {[%clk 0:02:36]} 13. Raxd1 {[%clk 0:02:36]}  Rfc8 {[%clk 0:02:34]} 14. h3 {[%clk 0:02:31]}  Rab8 {[%clk 0:02:32]} 15. a4 {[%clk 0:02:18]}  a6 {[%clk 0:02:26]} 16. Rb1 {[%clk 0:02:15]}  Bf5 {[%clk 0:02:18]} 17. e4 {[%clk 0:02:12]}  Be6 {[%clk 0:02:11]} 18. Rfc1 {[%clk 0:02:10]}  Nd7 {[%clk 0:02:10]} 19. Nd5 {[%clk 0:01:46]}  Bxd5 {[%clk 0:01:57]} 20. exd5 {[%clk 0:01:46]}  Nd4 {[%clk 0:01:57]} 21. Nxd4 {[%clk 0:01:44]}  Bxd4 {[%clk 0:01:56]} 22. Bf1 {[%clk 0:01:37]}  f6 {[%clk 0:01:51]} 23. Kg2 {[%clk 0:01:29]}  Kf7 {[%clk 0:01:45]} 24. Be2 {[%clk 0:01:26]}  h5 {[%clk 0:01:44]} 25. Re1 {[%clk 0:01:22]}  b6 {[%clk 0:01:24]} 26. Bf1 {[%clk 0:01:15]}  a5 {[%clk 0:01:21]} 27. Bd3 {[%clk 0:01:12]}  Ne5 {[%clk 0:01:15]} 28. Bc2 {[%clk 0:01:08]}  Bc5 {[%clk 0:01:11]} 29. f4 {[%clk 0:01:01]}  Nd7 {[%clk 0:01:11]} 30. Re2 {[%clk 0:00:58]}  Bb4 {[%clk 0:01:08]} 31. Bc1 {[%clk 0:00:41]}  Rg8 {[%clk 0:01:07]} 32. Rb2 {[%clk 0:00:29]}  Ba3 {[%clk 0:01:04]} 33. Rb1 {[%clk 0:00:27]}  Bxc1 {[%clk 0:01:04]} 34. Rxc1 {[%clk 0:00:28]}  Nc5 {[%clk 0:01:00]} 35. Rce1 {[%clk 0:00:27]}  Rbe8 {[%clk 0:00:53]} 36. g4 {[%clk 0:00:26]}  hxg4 {[%clk 0:00:52]} 37. hxg4 {[%clk 0:00:27]}  Rh8 {[%clk 0:00:52]} 38. Kg3 {[%clk 0:00:27]}  Rh7 {[%clk 0:00:37]} 39. Re3 {[%clk 0:00:24]}  Rg7 {[%clk 0:00:35]} 40. Rh1 {[%clk 0:00:22]}  e5 {[%clk 0:00:35]} 41. dxe6+ {[%clk 0:00:22]}  Rxe6 {[%clk 0:00:35]} 42. Rxe6 {[%clk 0:00:21]}  Kxe6 {[%clk 0:00:35]} 43. Bxg6 {[%clk 0:00:19]}  Nxb3 {[%clk 0:00:30]} 44. Rb1 {[%clk 0:00:16]}  Nd4 {[%clk 0:00:29]} 45. f5+ {[%clk 0:00:15]}  Ke5 {[%clk 0:00:26]} 46. Rxb6 {[%clk 0:00:15]}  Rc7 {[%clk 0:00:23]} 47. Ra6 {[%clk 0:00:15]}  Rxc4 {[%clk 0:00:23]} 48. Rxa5+ {[%clk 0:00:16]}  Ke4 {[%clk 0:00:17]} 49. g5 {[%clk 0:00:12]}  Rc3+ {[%clk 0:00:17]} 50. Kg4 {[%clk 0:00:12]}  Nf3 {[%clk 0:00:15]} 51. gxf6 {[%clk 0:00:12]}  Ne5+ {[%clk 0:00:15]} 52. Kg5 {[%clk 0:00:03]}  Rc7 {[%clk 0:00:13]} 53. f7 {[%clk 0:00:02]}  Nxf7+ {[%clk 0:00:13]} 54. Bxf7 {[%clk 0:00:03]}  Rxf7 {[%clk 0:00:13]} 55. f6 {[%clk 0:00:03]}  d5 {[%clk 0:00:12]} 56. Kg6 {[%clk 0:00:04]}  Rf8 {[%clk 0:00:12]} 57. f7 {[%clk 0:00:05]}  Rd8 {[%clk 0:00:10]} 58. Kg7 {[%clk 0:00:05]}  d4 {[%clk 0:00:10]} 59. f8=Q {[%clk 0:00:05]}  Rxf8 {[%clk 0:00:10]} 60. Kxf8 {[%clk 0:00:06]}  d3 {[%clk 0:00:10]} 61. Ra8 {[%clk 0:00:07]}  Kd4 {[%clk 0:00:10]} 62. Rd8+ {[%clk 0:00:08]}  Kc3 {[%clk 0:00:11]} 63. a5 {[%clk 0:00:08]}  Kb4 {[%clk 0:00:11]} 64. a6 {[%clk 0:00:09]}  Ka5 {[%clk 0:00:12]} 65. Rxd3 {[%clk 0:00:10]}  Kxa6 {[%clk 0:00:13]} 66. Re3 {[%clk 0:00:11]}  Kb5 {[%clk 0:00:13]} 67. Re6 {[%clk 0:00:12]}  Kc5 {[%clk 0:00:14]} 68. Ke7 {[%clk 0:00:12]}  Kd5 {[%clk 0:00:15]} 69. Kd7 {[%clk 0:00:13]}  Kd4 {[%clk 0:00:16]} 70. Kd6 {[%clk 0:00:13]}  Kc4 {[%clk 0:00:14]} 71. Re4+ {[%clk 0:00:13]} 1-0


[Site "https://www.chess.com"]

[Event "Titled Tuesday Blitz July 11 Early 2023"]
[White "Geivondian, Arman"]
[Black "Xu, Yi"]
[WhiteFideId "24102032"]
[BlackFideId "8605564"]
[WhiteElo "2577"]
[BlackElo "2727"]
[Result "1-0"]
[Round "9"]
[TimeControl "180+2"]
[Date "2023.07.11"]
[WhiteClock "0:00:23"]
[BlackClock "0:00:06"]
[Board "36"]

1. e4 {[%clk 0:02:57]}  c5 {[%clk 0:02:58]} 2. Nf3 {[%clk 0:02:51]}  Nc6 {[%clk 0:02:57]} 3. Bb5 {[%clk 0:02:50]}  Na5 {[%clk 0:02:53]} 4. O-O {[%clk 0:02:45]}  a6 {[%clk 0:02:50]} 5. Be2 {[%clk 0:02:45]}  e6 {[%clk 0:02:49]} 6. c3 {[%clk 0:02:45]}  d5 {[%clk 0:02:46]} 7. exd5 {[%clk 0:02:45]}  exd5 {[%clk 0:02:46]} 8. d4 {[%clk 0:02:46]}  c4 {[%clk 0:02:45]} 9. Re1 {[%clk 0:02:46]}  Be7 {[%clk 0:02:43]} 10. Ne5 {[%clk 0:02:43]}  Nf6 {[%clk 0:02:42]} 11. Nd2 {[%clk 0:02:43]}  O-O {[%clk 0:02:41]} 12. b3 {[%clk 0:02:43]}  b5 {[%clk 0:02:37]} 13. a4 {[%clk 0:02:43]}  Be6 {[%clk 0:02:34]} 14. axb5 {[%clk 0:02:42]}  axb5 {[%clk 0:02:32]} 15. b4 {[%clk 0:02:42]}  Nb7 {[%clk 0:02:30]} 16. Nc6 {[%clk 0:02:42]}  Rxa1 {[%clk 0:02:27]} 17. Nxd8 {[%clk 0:02:41]}  Rxd8 {[%clk 0:02:27]} 18. Nf3 {[%clk 0:02:30]}  Nd6 {[%clk 0:02:21]} 19. Ne5 {[%clk 0:02:29]}  Rda8 {[%clk 0:02:14]} 20. f3 {[%clk 0:02:27]}  R8a2 {[%clk 0:02:11]} 21. Bf1 {[%clk 0:02:12]}  Rb1 {[%clk 0:02:06]} 22. g4 {[%clk 0:02:04]}  Bf8 {[%clk 0:02:03]} 23. h4 {[%clk 0:01:42]}  Nd7 {[%clk 0:01:52]} 24. Nxd7 {[%clk 0:01:40]}  Bxd7 {[%clk 0:01:52]} 25. Re2 {[%clk 0:01:35]}  Raa1 {[%clk 0:01:50]} 26. Re1 {[%clk 0:01:27]}  Rxc1 {[%clk 0:01:39]} 27. Qxc1 {[%clk 0:01:28]}  Rxc1 {[%clk 0:01:39]} 28. Rxc1 {[%clk 0:01:29]}  Nc8 {[%clk 0:01:38]} 29. Kf2 {[%clk 0:01:27]}  Nb6 {[%clk 0:01:35]} 30. Be2 {[%clk 0:01:25]}  Bd6 {[%clk 0:01:34]} 31. Ke3 {[%clk 0:01:23]}  Na4 {[%clk 0:01:33]} 32. Bd1 {[%clk 0:01:22]}  f6 {[%clk 0:01:31]} 33. Bxa4 {[%clk 0:01:18]}  bxa4 {[%clk 0:01:30]} 34. f4 {[%clk 0:01:19]}  Bxg4 {[%clk 0:01:26]} 35. b5 {[%clk 0:01:16]}  a3 {[%clk 0:01:24]} 36. b6 {[%clk 0:01:10]}  Bd7 {[%clk 0:01:18]} 37. b7 {[%clk 0:01:08]}  Ba4 {[%clk 0:01:18]} 38. Ra1 {[%clk 0:01:08]}  Bc6 {[%clk 0:00:51]} 39. Rxa3 {[%clk 0:01:07]}  Kf7 {[%clk 0:00:49]} 40. Ra6 {[%clk 0:01:03]}  Bxb7 {[%clk 0:00:48]} 41. Rxd6 {[%clk 0:01:03]}  Ke7 {[%clk 0:00:45]} 42. Rb6 {[%clk 0:01:03]}  Bc8 {[%clk 0:00:45]} 43. Rc6 {[%clk 0:01:00]}  Bd7 {[%clk 0:00:44]} 44. Ra6 {[%clk 0:01:00]}  g6 {[%clk 0:00:41]} 45. Kf3 {[%clk 0:00:58]}  h5 {[%clk 0:00:39]} 46. Ra7 {[%clk 0:00:57]}  Kd6 {[%clk 0:00:38]} 47. Ra8 {[%clk 0:00:57]}  Ke6 {[%clk 0:00:35]} 48. Rh8 {[%clk 0:00:50]}  Ba4 {[%clk 0:00:32]} 49. Rh7 {[%clk 0:00:44]}  Bc2 {[%clk 0:00:31]} 50. Ra7 {[%clk 0:00:43]}  Kf5 {[%clk 0:00:29]} 51. Re7 {[%clk 0:00:41]}  Be4+ {[%clk 0:00:29]} 52. Ke3 {[%clk 0:00:41]}  Bc2 {[%clk 0:00:25]} 53. Rd7 {[%clk 0:00:36]}  Be4 {[%clk 0:00:25]} 54. Re7 {[%clk 0:00:32]}  Bh1 {[%clk 0:00:24]} 55. Rg7 {[%clk 0:00:30]}  Bg2 {[%clk 0:00:21]} 56. Kf2 {[%clk 0:00:29]}  Be4 {[%clk 0:00:18]} 57. Kg3 {[%clk 0:00:29]}  Bc2 {[%clk 0:00:17]} 58. Re7 {[%clk 0:00:29]}  Be4 {[%clk 0:00:17]} 59. Re8 {[%clk 0:00:29]}  Bh1 {[%clk 0:00:17]} 60. Re1 {[%clk 0:00:24]}  Be4 {[%clk 0:00:17]} 61. Ra1 {[%clk 0:00:25]}  g5 {[%clk 0:00:15]} 62. fxg5 {[%clk 0:00:24]}  fxg5 {[%clk 0:00:16]} 63. Rf1+ {[%clk 0:00:24]}  Kg6 {[%clk 0:00:16]} 64. Rf8 {[%clk 0:00:24]}  gxh4+ {[%clk 0:00:15]} 65. Kxh4 {[%clk 0:00:25]}  Bd3 {[%clk 0:00:14]} 66. Rf2 {[%clk 0:00:19]}  Be4 {[%clk 0:00:13]} 67. Rf4 {[%clk 0:00:19]}  Bd3 {[%clk 0:00:13]} 68. Rf8 {[%clk 0:00:20]}  Be2 {[%clk 0:00:12]} 69. Re8 {[%clk 0:00:19]}  Bf3 {[%clk 0:00:12]} 70. Re5 {[%clk 0:00:19]}  Kf6 {[%clk 0:00:11]} 71. Kg3 {[%clk 0:00:19]}  Be4 {[%clk 0:00:05]} 72. Rxh5 {[%clk 0:00:19]}  Bg6 {[%clk 0:00:05]} 73. Re5 {[%clk 0:00:19]}  Bf7 {[%clk 0:00:05]} 74. Kf4 {[%clk 0:00:20]}  Be6 {[%clk 0:00:05]} 75. Rh5 {[%clk 0:00:19]}  Bf7 {[%clk 0:00:05]} 76. Rh6+ {[%clk 0:00:20]}  Bg6 {[%clk 0:00:05]} 77. Rxg6+ {[%clk 0:00:19]}  Kxg6 {[%clk 0:00:05]} 78. Ke5 {[%clk 0:00:20]}  Kf7 {[%clk 0:00:06]} 79. Kxd5 {[%clk 0:00:21]}  Ke7 {[%clk 0:00:07]} 80. Kxc4 {[%clk 0:00:21]}  Kd6 {[%clk 0:00:07]} 81. Kd3 {[%clk 0:00:22]}  Kd5 {[%clk 0:00:06]} 82. c4+ {[%clk 0:00:23]} 1-0


[Site "https://www.chess.com"]